fUST/lending_fUST_20251101
["ID","MTS","AMOUNT","RATE_DAILY","PERIOD"]
[392817666,1761991357716,-1500.0,0.00045,30]
[392817667,1761991357739,-1500.0,0.00045,30]
[392817668,1761991357765,-1938.52,0.00045,30]
[392817669,1761991357788,-1500.0,0.00045,30]
[392817670,1761991357813,-151.0,0.00045,120]
[392817671,1761991357837,-1056.87190229,0.00045231,120]
[392817672,1761991357864,-151.0,0.00045402,120]
[392817673,1761991357887,-46959.91495691,0.00045552,30]
[392817674,1761991357913,-155.933781,0.00045552,120]
[392817675,1761991357938,-401.8,0.00045552,120]
[392817676,1761991357967,-401.8,0.00045552,120]
[392817677,1761991357993,-151.0,0.00045552,120]
[392817678,1761991358018,-401.8,0.00045552,120]
[392817679,1761991358043,-151.0,0.00045552,120]
[392817680,1761991358068,-401.8,0.00045552,120]
[392817681,1761991358093,-151.0,0.00045552,120]
[392817682,1761991358118,-151.0,0.00045552,120]
[392817683,1761991358144,-308.970672,0.00045552,120]
[392817684,1761991358169,-308.970672,0.00045552,120]
[392817685,1761991358194,-308.970672,0.00045552,120]
[392817686,1761991358220,-308.970672,0.00045552,120]
[392817687,1761991358248,-151.0,0.00045552,120]
[392817688,1761991358274,-153.741765,0.00045552,120]
[392817689,1761991358299,-151.0,0.00045552,120]
[392817690,1761991358325,-151.0,0.00045552,120]
[392817691,1761991358350,-151.0,0.00045552,120]
[392817692,1761991358374,-165.284887,0.00045552,120]
[392817693,1761991358398,-151.0,0.00045552,120]
[392817694,1761991358427,-151.0,0.00045552,120]
[392817695,1761991358451,-151.0,0.00045552,120]
[392817696,1761991358476,-219.36,0.000457,44]
[392817697,1761991358500,-800.0,0.00045782,60]
[392817698,1761991358524,-201.11057587,0.00045985,120]
[392817699,1761991358549,-281.54,0.000468,120]
[392817700,1761991358578,-800.0,0.00046878,60]
[392817701,1761991358604,-1124.81366744,0.00047231,120]
[392817702,1761991358627,-800.0,0.00047974,60]
[392817703,1761991358651,-1000.0,0.00048,120]
[392817704,1761991358675,-372.62578,0.00048,120]
[392817705,1761991358699,-183.88,0.00048,30]
[392817706,1761991358723,-2189.1117891,0.000488,120]
[392817707,1761991358747,-157.0,0.00049,120]
[392817708,1761991358770,-348.84252927,0.00049,120]
[392817709,1761991358795,-800.0,0.0004907,60]
[392817710,1761991358822,-1192.75543259,0.00049231,120]
[392817711,1761991358849,-500.0,0.00049315,120]
[392817712,1761991358877,-500.0,0.00049315,120]
[392817713,1761991358902,-500.0,0.00049315,120]
[392817714,1761991358929,-500.0,0.00049315,120]
[392817715,1761991358958,-400.61655348,0.00049315,120]
[392817717,1761991359073,-2015.0,0.000494,48]
[392817718,1761991359099,-326118.2382,0.00049444,30]
[392817719,1761991359124,-151.0,0.00049444,120]
[392817720,1761991359150,-153.879368,0.00049444,120]
[392817721,1761991359175,-243.04831,0.00049444,120]
[392817722,1761991359200,-151.0,0.00049444,120]
[392817723,1761991359224,-151.0,0.00049444,120]
[392817724,1761991359249,-179.84293,0.00049444,120]
[392817725,1761991359275,-156.629413,0.00049444,120]
[392817726,1761991359298,-174.652115,0.00049444,120]
[392817727,1761991359325,-164.635929,0.00049444,120]
[392817728,1761991359349,-167.733578,0.00049444,120]
[392817729,1761991359373,-167.733578,0.00049444,120]
[392817730,1761991359396,-167.733578,0.00049444,120]
[392817731,1761991359419,-167.733578,0.00049444,120]
[392817732,1761991359442,-401.8,0.00049444,120]
[392817733,1761991359466,-401.8,0.00049444,120]
[392817734,1761991359490,-151.0,0.00049444,120]
[392817735,1761991359514,-401.8,0.00049444,120]
[392817736,1761991359536,-151.0,0.00049444,120]
[392817737,1761991359563,-401.8,0.00049444,120]
[392817738,1761991359585,-151.0,0.00049444,120]
[392817739,1761991359610,-205.736806,0.00049444,120]
[392817740,1761991359633,-308.970672,0.00049444,120]
[392817741,1761991359656,-308.970672,0.00049444,120]
[392817742,1761991359680,-308.970672,0.00049444,120]
[392817743,1761991359702,-308.970672,0.00049444,120]
[392817744,1761991359728,-151.0,0.00049444,120]
[392817745,1761991359752,-151.0,0.00049444,120]
[392817746,1761991359777,-151.0,0.00049444,120]
[392817747,1761991359800,-151.0,0.00049444,120]
[392817748,1761991359825,-151.0,0.00049444,120]
[392817749,1761991359848,-156.935939,0.00049444,120]
[392817750,1761991359870,-151.0,0.00049444,120]
[392817751,1761991359894,-151.0,0.00049444,120]
[392817752,1761991359917,-200.0,0.000499,120]
[392817753,1761991359940,-10000.0,0.0005,30]
[392817754,1761991359968,-4904.68665484,0.0005,120]
[392817755,1761991359991,-1000.0,0.0005,120]
[392817756,1761991360015,-999.00000077,0.0005,120]
[392817757,1761991360039,-850.40454461,0.0005,120]
[392817758,1761991360061,-177757.53599291,0.0005,120]
[392817759,1761991364937,-151.0,0.00039455,120]
[392817760,1761991364965,-295.75974108,0.00039455,120]
[392817761,1761991364994,-330.7173974,0.00041525,30]
[392817762,1761991365021,-151.0,0.00045402,120]
[392817763,1761991365047,-151.0,0.00049444,120]
[392817764,1761991365071,-124950.88722688,0.0005,120]
[392817765,1761991365097,-167.733578,0.0005,120]
[392817766,1761991365120,-167.733578,0.0005,120]
[392817767,1761991365143,-167.733578,0.0005,120]
[392817768,1761991365168,-167.733578,0.0005,120]
[392817769,1761991365192,-401.8,0.0005,120]
[392817770,1761991365216,-401.8,0.0005,120]
[392817771,1761991365242,-151.0,0.0005,120]
[392817772,1761991365267,-401.8,0.0005,120]
[392817773,1761991365293,-151.0,0.0005,120]
[392817774,1761991365319,-401.8,0.0005,120]
[392817775,1761991365345,-151.0,0.0005,120]
[392817776,1761991365368,-308.970672,0.0005,120]
[392817777,1761991365391,-308.970672,0.0005,120]
[392817778,1761991365414,-308.970672,0.0005,120]
[392817779,1761991365437,-308.970672,0.0005,120]
[392817780,1761991365461,-183.985822,0.0005,120]
[392817781,1761991365485,-151.0,0.0005,120]
[392817782,1761991365510,-151.0,0.0005,120]
[392817783,1761991365534,-240.222357,0.0005,120]
[392817784,1761991365558,-167.976893,0.0005,120]
[392817785,1761991365582,-153.321969,0.0005,120]
[392817786,1761991365606,-151.0,0.0005,120]
[392817787,1761991365632,-151.0,0.0005,120]
[392817788,1761991365658,-800.0,0.00050166,60]
[392817789,1761991365687,-412.0,0.00050246,120]
[392817790,1761991365711,-2000.0,0.00051,120]
[392817791,1761991365738,-150.0,0.0005108,30]
[392817792,1761991365762,-1260.69719774,0.00051231,120]
[392817793,1761991365789,-800.0,0.00051262,60]
[392817794,1761991365812,-6232.42346427,0.00052,120]
[392817795,1761991365834,-1000.0,0.00052,120]
[392817796,1761991365858,-2000.0,0.000522,120]
[392817797,1761991365882,-800.0,0.00052358,60]
[392817798,1761991365906,-2000.0,0.00053,120]
[392817799,1761991366033,-150.0,0.00053,120]
[392817800,1761991366056,-1500.0,0.00053,120]
[392817801,1761991366079,-1500.0,0.00053,120]
[392817802,1761991366104,-2000.0,0.000532,120]
[392817803,1761991366129,-1328.63896288,0.00053231,120]
[392817804,1761991366155,-157.11251,0.00053243,60]
[392817805,1761991366178,-412.0,0.00053246,120]
[392817806,1761991366202,-800.0,0.00053454,60]
[392817807,1761991366226,-183.88,0.000535,30]
[392817808,1761991366250,-163.6878394,0.00053753,30]
[392817809,1761991366277,-1000.0,0.00054,120]
[392817810,1761991366301,-1500.0,0.00054,120]
[392817811,1761991366326,-2000.0,0.000542,120]
[392817812,1761991366351,-20018.695104,0.00054399,120]
[392817813,1761991366375,-518483.97651535,0.00054444,30]
[392817814,1761991369044,-17886.35928465,0.00054444,30]
[392817815,1761991369071,-455558.06,0.00054444,30]
[392817816,1761991369096,-151.0,0.00054444,120]
[392817817,1761991369121,-152.416193,0.00054444,120]
[392817818,1761991369147,-153.074749,0.00054444,120]
[392817819,1761991369177,-154.665798,0.00054444,120]
[392817820,1761991369203,-167.733578,0.00054444,120]
[392817821,1761991369229,-167.733578,0.00054444,120]
[392817822,1761991369253,-167.733578,0.00054444,120]
[392817823,1761991369276,-167.733578,0.00054444,120]
[392817824,1761991369300,-167.733578,0.00054444,120]
[392817825,1761991369324,-167.733578,0.00054444,120]
[392817826,1761991369346,-167.733578,0.00054444,120]
[392817827,1761991369371,-167.733581,0.00054444,120]
[392817828,1761991369395,-401.8,0.00054444,120]
[392817829,1761991369419,-401.8,0.00054444,120]
[392817830,1761991369442,-151.0,0.00054444,120]
[392817831,1761991369466,-401.8,0.00054444,120]
[392817832,1761991369489,-151.0,0.00054444,120]
[392817833,1761991369512,-401.8,0.00054444,120]
[392817834,1761991369535,-151.0,0.00054444,120]
[392817835,1761991369559,-308.970672,0.00054444,120]
[392817836,1761991369583,-308.970672,0.00054444,120]
[392817837,1761991369606,-308.970672,0.00054444,120]
[392817838,1761991369629,-308.970674,0.00054444,120]
[392817839,1761991369654,-151.0,0.00054444,120]
[392817840,1761991369677,-240.115022,0.00054444,120]
[392817841,1761991369702,-151.0,0.00054444,120]
[392817842,1761991369727,-151.0,0.00054444,120]
[392817843,1761991369750,-151.0,0.00054495,120]
[392817844,1761991369774,-151.0,0.00054495,120]
[392817845,1761991369798,-151.0,0.00054495,120]
[392817846,1761991369821,-180.11280063,0.00054495,120]
[392817847,1761991369845,-322.40209525,0.0005455,60]
[392817848,1761991369870,-500.0,0.00054794,120]
[392817849,1761991369894,-151.0,0.00054795,120]
[392817850,1761991369917,-151.0,0.00054795,120]
[392817851,1761991369940,-151.0,0.00054795,120]
[392817852,1761991369971,-151.0,0.00054795,120]
[392817853,1761991369994,-151.0,0.00054795,120]
[392817854,1761991370017,-151.0,0.00054795,120]
[392817855,1761991370044,-153.309773,0.00054795,120]
[392817862,1761991378421,202.393106,0.00045552,120]
[392817865,1761991393282,-157.112511,0.00046938,120]
[392817866,1761991393308,-157.112511,0.0004815,120]
[392817867,1761991393334,-2000.0,0.00055,120]
[392817868,1761991393359,-546.25203134,0.00055,120]
[392817869,1761991393475,-500.0,0.00055068,120]
[392817870,1761991393504,-1396.58072803,0.00055231,120]
[392817871,1761991393531,-500.0,0.00055342,120]
[392817872,1761991393556,-500.0,0.00055616,120]
[392817873,1761991393582,-500.0,0.0005589,120]
[392817874,1761991393609,-157.0,0.00056,120]
[392817875,1761991393634,-530.55237597,0.00056164,120]
[392817876,1761991393660,-2000.0,0.000562,120]
[392817877,1761991393684,-412.0,0.00056246,120]
[392817878,1761991393712,-2000.0,0.00057,120]
[392817879,1761991393737,-1464.52249318,0.00057231,120]
[392817880,1761991393760,-1000.0,0.00058,120]
[392817881,1761991393783,-167.14135526,0.00058,60]
[392817882,1761991393806,-1116.03185266,0.00058,60]
[392817883,1761991393829,-496.66684467,0.000588,120]
[392817884,1761991393853,-384399.02729689,0.000589,120]
[392817885,1761991396659,-373404.65341098,0.000589,120]
[392817886,1761991396684,-2000.0,0.00059,120]
[392817887,1761991396707,-1532.46425833,0.00059231,120]
[392817888,1761991396731,-412.0,0.00059246,120]
[392817889,1761991396755,-219.36,0.000597,63]
[392817890,1761991396778,-10000.0,0.000598,120]
[392817891,1761991396803,-500.0,0.00059999,120]
[392817892,1761991396827,-500.0,0.00059999,120]
[392817893,1761991396852,-500.0,0.00059999,120]
[392817894,1761991396875,-393.24335967,0.00059999,120]
[392817895,1761991396899,-583.18864077,0.00059999,120]
[392817896,1761991396924,-483.19971016,0.00059999,120]
[392817897,1761991396948,-500.0,0.00059999,120]
[392817898,1761991396978,-304.93371719,0.00059999,120]
[392817899,1761991397001,-1000.0,0.00059999,120]
[392817900,1761991397025,-175.0,0.0006,120]
[392817901,1761991397055,-7491.9569029,0.0006,120]
[392817902,1761991399872,-538.96205132,0.0006,120]
[392817903,1761991399898,-182.39499062,0.0006,120]
[392817904,1761991399921,-150.0,0.00061,120]
[392817905,1761991399945,-2000.0,0.00061,120]
[392817906,1761991399978,-1600.40602347,0.00061231,120]
[392817907,1761991400003,-200.0,0.00062,120]
[392817908,1761991400030,-412.0,0.00062246,120]
[392817909,1761991400057,-412.95979493,0.00062422,120]
[392817910,1761991400081,-201.53171904,0.00062714,120]
[392817911,1761991400107,-151.0,0.00062714,120]
[392817912,1761991400132,-151.0,0.00062714,120]
[392817913,1761991400155,-151.0,0.00062714,120]
[392817914,1761991400178,-151.0,0.00062714,120]
[392817915,1761991400202,-151.0,0.00062714,120]
[392817916,1761991400225,-245.0,0.00062714,120]
[392817917,1761991400249,-1000.0,0.000629,120]
[392817918,1761991400272,-2000.0,0.00063,120]
[392817919,1761991400295,-1005.0,0.00063,120]
[392817920,1761991400320,-157.0,0.00063,120]
[392817921,1761991400344,-24595.34658902,0.00063004,120]
[392817922,1761991400376,173900.02566827,0.00063004,120]
[392817923,1761991404186,150.0,0.00024457,2]
[392817944,1761991510333,160.88708842,0.00037986,20]
[392817955,1761991521250,316.76145308,0.00037986,20]
[392817966,1761991597938,-299.33871783,0.00025231,2]
[392818013,1761991695164,371.920697,0.00038101,20]
[392818015,1761991740373,999.0,0.00032876,120]
[392818019,1761991756178,787.030896,0.00013699,2]
[392818020,1761991756591,787.030896,0.00020187,2]
[392818021,1761991773434,151.6869425,0.00038101,20]
[392818047,1761991798113,246.68,0.00024038,2]
[392818065,1761991832144,-152.56145911,0.00025484,2]
[392818066,1761991832156,-484.0,0.00025484,2]
[392818068,1761991832166,-220.98783558,0.00025516,2]
[392818069,1761991832176,-220.98783557,0.00025558,2]
[392818070,1761991832185,-500.0,0.00025573,2]
[392818071,1761991832194,-208.78585451,0.00025573,2]
[392818072,1761991832203,-500.0,0.00025573,2]
[392818073,1761991832212,-160.0,0.00025582,2]
[392818074,1761991832221,-300.0,0.00025597,2]
[392818075,1761991832230,-1200.0,0.00025597,2]
[392818076,1761991832240,-300.0,0.00025597,2]
[392818077,1761991832249,-500.0,0.00025598,2]
[392818078,1761991832259,-300.0,0.00025598,2]
[392818079,1761991832268,-300.0,0.00025598,2]
[392818080,1761991832277,-300.0,0.00025598,2]
[392818081,1761991832287,-929.328014,0.00025598,2]
[392818082,1761991832314,-194.90328554,0.00025598,2]
[392818083,1761991832423,-500.0,0.00025598,2]
[392818084,1761991832433,-18226.90183691,0.00025598,2]
[392818085,1761991832442,-1200.0,0.00025599,2]
[392818086,1761991832451,-2860.53745157,0.000256,2]
[392818087,1761991832461,-220.98783557,0.000256,2]
[392818088,1761991832470,-5372.37318206,0.000256,2]
[392818089,1761991832481,-500.0,0.00025616,2]
[392818090,1761991832490,-500.0,0.00025616,2]
[392818091,1761991832499,-539.50951885,0.00025616,2]
[392818092,1761991832509,-500.0,0.00025616,2]
[392818093,1761991832518,-500.0,0.00025616,2]
[392818094,1761991832527,-500.0,0.00025616,2]
[392818095,1761991832536,-500.0,0.00025616,2]
[392818096,1761991832545,-500.0,0.00025616,2]
[392818097,1761991832554,-500.0,0.00025616,2]
[392818098,1761991832563,-500.0,0.00025616,2]
[392818099,1761991832571,-500.0,0.00025616,2]
[392818100,1761991832580,-500.0,0.00025616,2]
[392818101,1761991832589,-500.0,0.00025616,2]
[392818102,1761991832598,-500.0,0.00025616,2]
[392818103,1761991832607,-500.0,0.00025616,2]
[392818104,1761991832616,-500.0,0.00025616,2]
[392818105,1761991832625,-500.0,0.00025616,2]
[392818106,1761991832633,-455.36941889,0.00025616,2]
[392818107,1761991832643,-500.0,0.00025616,2]
[392818108,1761991832652,-267.34807541,0.00025616,2]
[392818109,1761991832662,-500.0,0.00025616,2]
[392818110,1761991832671,-500.0,0.00025616,2]
[392818111,1761991832680,-500.0,0.00025616,2]
[392818112,1761991832689,-244.40345472,0.00025616,2]
[392818113,1761991832698,-500.0,0.00025616,2]
[392818114,1761991832707,-500.0,0.00025616,2]
[392818115,1761991832716,-500.0,0.00025616,2]
[392818116,1761991832725,-500.0,0.00025616,2]
[392818117,1761991832735,-500.0,0.00025616,2]
[392818118,1761991832744,-244.40345472,0.00025616,2]
[392818119,1761991832753,-217.41407105,0.00025616,2]
[392818120,1761991832761,-500.0,0.00025616,2]
[392818121,1761991832770,-500.0,0.00025616,2]
[392818122,1761991832779,-255.59654528,0.00025616,2]
[392818123,1761991832793,-595.95195193,0.00025616,2]
[392818124,1761991832802,-500.0,0.00025616,2]
[392818125,1761991832811,-650.0,0.00025616,2]
[392818126,1761991832820,-500.0,0.00025616,2]
[392818127,1761991832829,-500.0,0.00025616,2]
[392818128,1761991832838,-500.0,0.00025616,2]
[392818129,1761991832848,-500.0,0.00025616,2]
[392818130,1761991832857,-500.0,0.00025616,2]
[392818131,1761991832866,-500.0,0.00025616,2]
[392818132,1761991832875,-159.2863811,0.00025616,2]
[392818133,1761991832885,-500.0,0.00025616,2]
[392818134,1761991832894,-500.0,0.00025616,2]
[392818135,1761991832904,-500.0,0.00025616,2]
[392818136,1761991832913,-333.18824523,0.00025616,2]
[392818137,1761991832923,-500.0,0.00025616,2]
[392818138,1761991832932,-500.0,0.00025616,2]
[392818139,1761991832941,-500.0,0.00025617,2]
[392818140,1761991832950,-381.18,0.00025655,2]
[392818141,1761991832959,-151.0,0.0002567,2]
[392818142,1761991832968,-151.0,0.0002567,2]
[392818143,1761991832977,-151.0,0.0002567,2]
[392818144,1761991832987,-151.0,0.0002567,2]
[392818145,1761991832996,-151.0,0.0002567,2]
[392818146,1761991833005,-151.0,0.0002567,2]
[392818147,1761991833015,-151.0,0.0002567,2]
[392818148,1761991833024,-151.0,0.0002567,2]
[392818149,1761991833033,-151.0,0.0002567,2]
[392818150,1761991833042,-151.0,0.0002567,2]
[392818151,1761991833051,-151.0,0.0002567,2]
[392818152,1761991833060,-151.0,0.0002567,2]
[392818153,1761991833070,-151.0,0.0002567,2]
[392818154,1761991833079,-151.0,0.0002567,2]
[392818155,1761991833088,-151.0,0.0002567,2]
[392818156,1761991833097,-151.0,0.0002567,2]
[392818157,1761991833106,-151.0,0.0002567,2]
[392818158,1761991833115,-151.0,0.0002567,2]
[392818159,1761991833124,-151.0,0.0002567,2]
[392818160,1761991833135,-151.0,0.0002567,2]
[392818161,1761991833144,-504.31750824,0.00025673,2]
[392818162,1761991833156,-500.0,0.00025674,2]
[392818163,1761991833166,-440.73550624,0.00025675,2]
[392818164,1761991833176,-254.73,0.00025675,10]
[392818165,1761991833185,-212.27,0.00025675,10]
[392818166,1761991833195,-506.45761781,0.00025683,2]
[392818167,1761991833206,-341.70246211,0.00025683,2]
[392818168,1761991833216,-500.0,0.00025683,2]
[392818169,1761991833225,-500.0,0.00025683,2]
[392818170,1761991833236,-500.0,0.00025683,2]
[392818171,1761991833245,-500.0,0.00025683,2]
[392818172,1761991833254,-500.0,0.00025683,2]
[392818173,1761991833263,-500.9769299,0.00025683,2]
[392818174,1761991833273,-500.0,0.00025683,2]
[392818175,1761991833282,-500.0,0.00025683,2]
[392818176,1761991833291,-575.61508955,0.00025684,2]
[392818177,1761991833300,-392.02467346,0.00025684,2]
[392818178,1761991833310,-500.0,0.00025684,2]
[392818179,1761991833319,-500.0,0.00025684,2]
[392818180,1761991833328,-1000.0,0.00025684,2]
[392818181,1761991833337,-500.0,0.00025684,2]
[392818182,1761991833346,-500.0,0.00025684,2]
[392818183,1761991833355,-500.0,0.00025684,2]
[392818184,1761991833364,-500.0,0.00025684,2]
[392818185,1761991833374,-500.0,0.00025684,2]
[392818186,1761991833383,-500.0,0.00025684,2]
[392818187,1761991833392,-273.1679133,0.00025684,2]
[392818188,1761991833401,-635934.8042334,0.00025685,2]
[392818189,1761991833413,-49065.1957666,0.00025685,2]
[392818190,1761991833422,-8792.79,0.000257,7]
[392818191,1761991833432,-621.2,0.000257,14]
[392818192,1761991833441,-541.2018345,0.00025839,2]
[392818193,1761991833450,-1187.9313383,0.00025841,2]
[392818194,1761991833459,-735.0315626,0.00025841,2]
[392818195,1761991833469,-390.48280618,0.00025891,2]
[392818196,1761991833478,-300.0,0.00026107,20]
[392818197,1761991833487,-300.0,0.00026107,20]
[392818198,1761991833496,-300.0,0.00026107,20]
[392818199,1761991833506,-300.0,0.00026107,20]
[392818200,1761991833514,-300.0,0.00026107,20]
[392818201,1761991833524,-300.0,0.00026107,20]
[392818202,1761991833534,-300.0,0.00026107,20]
[392818203,1761991833543,-300.0,0.00026107,20]
[392818204,1761991833552,-300.0,0.00026107,20]
[392818205,1761991833561,-300.0,0.00026107,20]
[392818206,1761991833571,-300.0,0.00026107,20]
[392818207,1761991833579,-300.0,0.00026107,20]
[392818208,1761991833588,-300.0,0.00026107,20]
[392818209,1761991833598,-300.0,0.00026107,20]
[392818210,1761991833607,-300.0,0.00026107,20]
[392818211,1761991833616,-600.0,0.00026111,20]
[392818212,1761991833626,-1000.0,0.00026121,2]
[392818213,1761991833635,-456.68688538,0.0002616,2]
[392818214,1761991833644,-493.35,0.00026223,2]
[392818215,1761991833654,-372.49721733,0.00026655,2]
[392818216,1761991833662,-670.4949912,0.00026655,2]
[392818217,1761991833672,-500.0,0.00026668,2]
[392818218,1761991833681,-787.030896,0.00026676,2]
[392818219,1761991833690,-219.38,0.00027,3]
[392818220,1761991833699,-441.24732779,0.00027012,11]
[392818221,1761991833708,-500.0,0.0002705,2]
[392818222,1761991833717,-518.04796431,0.0002705,2]
[392818223,1761991833726,-1191.99109547,0.00027306,2]
[392818224,1761991833736,-1893.2,0.000275,2]
[392818225,1761991833745,-1000.0,0.00027598,5]
[392818226,1761991833754,-199.0,0.00027671,7]
[392818227,1761991833763,-420.0,0.00027713,2]
[392818228,1761991833773,-420.0,0.00027713,2]
[392818229,1761991833782,-420.0,0.00027714,2]
[392818230,1761991833791,-420.0,0.00027714,2]
[392818231,1761991833800,-420.0,0.00027714,2]
[392818232,1761991833809,-1680.0,0.00027715,2]
[392818233,1761991833828,-1680.0,0.00027838,2]
[392818234,1761991833838,-255.0,0.00027863,26]
[392818235,1761991833848,-199.0,0.00027945,8]
[392818236,1761991833857,-391.21386407,0.00027964,2]
[392818237,1761991833866,-1860.62360058,0.00028105,2]
[392818238,1761991833876,-160.0,0.0002818,2]
[392818239,1761991833885,-199.0,0.00028219,9]
[392818240,1761991833894,-740.03,0.00028409,2]
[392818241,1761991833904,-167.18364799,0.0002842,2]
[392818242,1761991833914,-199.0,0.00028493,10]
[392818243,1761991833923,-1187.9313383,0.00028705,2]
[392818244,1761991833932,-720.0,0.00028722,30]
[392818245,1761991833941,-260.0,0.00028728,2]
[392818246,1761991833950,-199.0,0.00028767,11]
[392818247,1761991833960,-241.83645973,0.00029028,2]
[392818248,1761991833969,-500.0,0.0002904,5]
[392818249,1761991833978,-199.0,0.00029041,12]
[392818250,1761991833988,-621.2,0.000291,14]
[392818251,1761991833997,-541.2018345,0.00029135,2]
[392818252,1761991834007,-735.0315626,0.00029137,2]
[392818253,1761991834016,-200.0,0.00029204,2]
[392818254,1761991834026,-360.0,0.00029276,2]
[392818255,1761991834035,-199.0,0.00029315,13]
[392818256,1761991834044,-1000.0,0.000295,2]
[392818257,1761991834053,-1000.0,0.000295,2]
[392818258,1761991834062,-1000.0,0.000295,2]
[392818259,1761991834072,-1000.0,0.000295,2]
[392818260,1761991834081,-219.36,0.00029533,3]
[392818261,1761991834090,-1000.0,0.00029588,5]
[392818262,1761991834100,-199.0,0.00029589,14]
[392818263,1761991834109,-1000.0,0.000296,2]
[392818264,1761991834118,-1000.0,0.000296,2]
[392818265,1761991834127,-1000.0,0.000296,2]
[392818266,1761991834136,-1000.0,0.000296,2]
[392818267,1761991834145,-1000.0,0.000296,2]
[392818268,1761991834157,-1000.0,0.000296,2]
[392818269,1761991834166,-460.0,0.00029824,2]
[392818270,1761991834175,-391.21386407,0.00029833,3]
[392818271,1761991834184,-323.26,0.00029863,15]
[392818272,1761991834193,-157.112511,0.00029907,2]
[392818273,1761991834202,-156.970152,0.00029907,2]
[392818274,1761991834211,-163.771581,0.00029907,2]
[392818275,1761991834221,-578.11692382,0.0003,7]
[392818276,1761991834230,-164.50075436,0.00030003,2]
[392818277,1761991834239,-213.11478897,0.00030003,2]
[392818278,1761991834249,-972.87398961,0.00030003,2]
[392818279,1761991834258,-587.0,0.00030004,2]
[392818280,1761991834267,-587.0,0.00030004,2]
[392818281,1761991834277,-587.0,0.00030005,2]
[392818282,1761991834291,-580.0,0.00030005,2]
[392818283,1761991834300,-587.0,0.00030005,2]
[392818284,1761991834310,-1058.0,0.00030006,2]
[392818285,1761991834319,-972.87398961,0.0003009,5]
[392818286,1761991834328,-1295.77378123,0.00030136,5]
[392818287,1761991834338,-972.87398961,0.00030178,9]
[392818288,1761991834347,-972.87398961,0.00030265,13]
[392818289,1761991834356,-2351.0,0.00030274,2]
[392818290,1761991834365,-972.87398961,0.00030352,16]
[392818291,1761991834374,-213.11478897,0.00030364,17]
[392818292,1761991834383,-560.0,0.00030372,2]
[392818293,1761991834392,-972.87398961,0.00030439,20]
[392818294,1761991834402,-972.87398961,0.00030526,24]
[392818295,1761991834411,-986.71,0.00030594,2]
[392818296,1761991834420,-972.87398961,0.00030613,28]
[392818297,1761991834429,-972.87398961,0.000307,31]
[392818298,1761991834438,-972.87398961,0.00030787,35]
[392818299,1761991834447,-972.87398961,0.00030875,39]
[392818300,1761991834456,-660.0,0.0003092,2]
[392818301,1761991834466,-972.87398961,0.00030962,42]
[392818302,1761991834476,-972.87398961,0.00031049,46]
[392818303,1761991834486,-972.87398961,0.00031136,50]
[392818304,1761991834496,-155.0,0.00031151,44]
[392818305,1761991834507,-972.87398961,0.00031223,54]
[392818306,1761991834517,-157.112511,0.0003131,2]
[392818307,1761991834527,-156.970152,0.0003131,2]